fUST/lending_fUST_20251206
["ID","MTS","AMOUNT","RATE_DAILY","PERIOD"]
[396519641,1765030399552,230.5,8.4e-05,2]
[396519642,1765030399973,230.5,8.5e-05,2]
[396519643,1765030400361,230.5,8.6e-05,2]
[396519646,1765030461828,194.17,7.563e-05,2]
[396519647,1765030461893,212.06,8.3e-05,2]
[396519648,1765030462393,-68.59815648,8.711e-05,2]
[396519649,1765030462434,-89.19667819,8.795e-05,2]
[396519650,1765030462486,388.35,8.251e-05,2]
[396519651,1765030462547,212.06,8.4e-05,2]
[396519652,1765030462673,212.06,8.5e-05,2]
[396519653,1765030462778,212.06,8.6e-05,2]
[396519654,1765030463935,-159.90913768,8.7e-05,2]
[396519655,1765030491895,-52.15086232,8.7e-05,2]
[396519656,1765030491937,-199.39028598,8.795e-05,2]
[396519657,1765030494607,-205.60589868,8.748e-05,2]
[396519658,1765030494647,-11.41303583,8.795e-05,2]
[396519659,1765030494689,-138.49573713,8.795e-05,2]
[396519660,1765030509987,300.0,8.62e-05,2]
[396519661,1765030517854,157.787787,8.619e-05,2]
[396519662,1765030522362,190.86,8.3e-05,2]
[396519663,1765030522697,190.86,8.4e-05,2]
[396519664,1765030523194,190.86,8.5e-05,2]
[396519665,1765030523598,190.86,8.6e-05,2]
[396519670,1765030540857,186.76,7.562e-05,2]
[396519671,1765030541358,373.52,8.25e-05,2]
[396519676,1765030581540,175.59,8.3e-05,2]
[396519679,1765030581906,175.59,8.4e-05,2]
[396519680,1765030582310,175.59,8.5e-05,2]
[396519681,1765030582606,175.59,8.6e-05,2]
[396519682,1765030582932,-175.59,8.7e-05,2]
[396519683,1765030582974,-90.03014538,8.706e-05,2]
[396519686,1765030596058,189.9403302,7.86e-05,2]
[396519690,1765030621182,179.63,7.547e-05,2]
[396519692,1765030621300,359.26,8.233e-05,2]
[396519704,1765030639824,161.06,8.3e-05,2]
[396519706,1765030640975,161.06,8.4e-05,2]
[396519707,1765030641234,161.06,8.5e-05,2]
[396519708,1765030641981,161.06,8.6e-05,2]
[396519734,1765030698127,300.0,8.611e-05,2]
[396519736,1765030701427,172.77,7.28e-05,2]
[396519737,1765030701666,151.2,8.3e-05,2]
[396519738,1765030701845,345.54,7.942e-05,2]
[396519739,1765030702011,151.2,8.4e-05,2]
[396519741,1765030702317,518.31,8.604e-05,2]
[396519742,1765030702381,27.78905879,8.5e-05,2]
[396519743,1765030702426,123.41094121,8.5e-05,2]
[396519744,1765030702793,151.2,8.6e-05,2]
[396519767,1765030720529,10000.01,8.611e-05,2]
[396519768,1765030720570,3660.84771826,8.611e-05,2]
[396519778,1765030743455,6339.16228174,8.611e-05,2]
[396519779,1765030743502,10000.01,8.611e-05,2]
[396519780,1765030743550,10000.01,8.611e-05,2]
[396519781,1765030743598,10000.01,8.611e-05,2]
[396519782,1765030743645,4153.96843689,8.611e-05,2]
[396519787,1765030751249,300.0,8.61e-05,2]
[396519790,1765030758518,202.57,8.3e-05,2]
[396519791,1765030758646,202.57,8.4e-05,2]
[396519792,1765030758858,202.57,8.5e-05,2]
[396519793,1765030759330,202.57,8.6e-05,2]
[396519798,1765030766475,300.0,8.61e-05,2]
[396519802,1765030782865,176.76,7.286e-05,2]
[396519804,1765030783277,353.52,7.948e-05,2]
[396519805,1765030783696,530.28,8.611e-05,2]
[396519806,1765030788673,300.0,8.61e-05,2]
[396519817,1765030811863,1196.0,8.61e-05,2]
[396519824,1765030823976,192.42,8.3e-05,2]
[396519825,1765030824358,192.42,8.4e-05,2]
[396519826,1765030824638,192.42,8.5e-05,2]
[396519827,1765030825023,192.42,8.6e-05,2]
[396519834,1765030834786,1109.52156311,8.61e-05,2]
[396519835,1765030834833,10000.01,8.61e-05,2]
[396519836,1765030834885,6306.51351081,8.61e-05,2]
[396519840,1765030842316,238.26913768,8.61e-05,2]
[396519847,1765030857979,9761.74086232,8.61e-05,2]
[396519848,1765030858028,10000.01,8.61e-05,2]
[396519849,1765030858274,8278.8837486,8.61e-05,2]
[396519852,1765030862130,163.26,7.288e-05,2]
[396519853,1765030862546,326.52,7.95e-05,2]
[396519854,1765030862964,489.78,8.613e-05,2]
[396519857,1765030866015,227.0,8.609e-05,2]
[396519863,1765030878588,180.05,8.3e-05,2]
[396519864,1765030879058,180.05,8.4e-05,2]
[396519865,1765030879447,180.05,8.5e-05,2]
[396519867,1765030879980,180.05,8.6e-05,2]
[396519870,1765030881666,300.0,8.609e-05,2]
[396519874,1765030889497,227.0,8.609e-05,2]
[396519885,1765030905325,300.0,8.609e-05,2]
[396519891,1765030913802,227.0,8.609e-05,2]
[396519900,1765030929062,300.0,8.609e-05,2]
[396519905,1765030937160,175.024,8.609e-05,2]
[396519906,1765030939548,168.68,8.3e-05,2]
[396519907,1765030939693,168.68,8.4e-05,2]
[396519908,1765030940065,168.68,8.5e-05,2]
[396519909,1765030940511,168.68,8.6e-05,2]
[396519910,1765030942282,150.79,7.286e-05,2]
[396519911,1765030942701,301.59,7.948e-05,2]
[396519912,1765030943111,452.38,8.61e-05,2]
[396519913,1765030953437,300.0,8.609e-05,2]
[396519914,1765030961895,175.024,8.609e-05,2]
[396519917,1765030977390,2091.21599755,8.609e-05,2]
[396519922,1765030985326,175.024,8.608e-05,2]
[396519927,1765030999217,155.18,8.3e-05,2]
[396519929,1765030999600,155.18,8.4e-05,2]
[396519930,1765031000089,155.18,8.5e-05,2]
[396519931,1765031000658,155.18,8.6e-05,2]
[396519933,1765031001107,175.024,8.608e-05,2]
[396519938,1765031009261,175.024,8.608e-05,2]
[396519942,1765031021304,168.82,7.283e-05,2]
[396519943,1765031021727,337.65,7.945e-05,2]
[396519944,1765031022159,506.47,8.607e-05,2]
[396519946,1765031024739,175.024,8.608e-05,2]
[396519950,1765031032340,175.024,8.608e-05,2]
[396519957,1765031047435,350.048,8.608e-05,2]
[396519958,1765031053559,746.23800245,7.701e-05,2]
[396519959,1765031053604,219.22082455,7.701e-05,2]
[396519960,1765031055636,175.024,8.608e-05,2]
[396519961,1765031059910,151.88,8.3e-05,2]
[396519962,1765031060230,151.88,8.4e-05,2]
[396519963,1765031060585,151.88,8.5e-05,2]
[396519964,1765031060889,151.88,8.6e-05,2]
[396519966,1765031079205,175.024,8.608e-05,2]
[396519969,1765031094684,175.024,8.608e-05,2]
[396519970,1765031100433,155.93,7.296e-05,2]
[396519971,1765031100867,311.87,7.959e-05,2]
[396519972,1765031101277,467.8,8.623e-05,2]
[396519975,1765031103014,300.0,8.607e-05,2]
[396519976,1765031118269,350.048,8.607e-05,2]
[396519977,1765031120512,151.88,8.3e-05,2]
[396519978,1765031120667,151.88,8.4e-05,2]
[396519979,1765031120849,151.88,8.5e-05,2]
[396519980,1765031148050,225.072,8.607e-05,2]
[396519982,1765031163908,175.024,8.607e-05,2]
[396519984,1765031172147,175.024,8.607e-05,2]
[396519985,1765031175578,151.88,8.3e-05,2]
[396519986,1765031175894,151.88,8.4e-05,2]
[396519987,1765031176202,151.88,8.5e-05,2]
[396519998,1765031180643,150.0,6.944e-05,2]
[396519999,1765031181111,288.05,7.575e-05,2]
[396520000,1765031181523,432.08,8.206e-05,2]
[396520001,1765031187508,175.024,8.607e-05,2]
[396520002,1765031189255,1000.0,8.623e-05,2]
[396520003,1765031190372,1000.0,8.623e-05,2]
[396520004,1765031191445,1000.0,8.623e-05,2]
[396520005,1765031193195,1000.0,8.623e-05,2]
[396520006,1765031193641,1000.0,8.623e-05,2]
[396520007,1765031194884,1000.0,8.623e-05,2]
[396520008,1765031195528,175.024,8.537e-05,2]
[396520009,1765031195912,1000.0,8.623e-05,2]
[396520010,1765031196923,1000.0,8.623e-05,2]
[396520011,1765031198239,1000.0,8.623e-05,2]
[396520012,1765031199415,649.962,8.623e-05,2]
[396520013,1765031201203,-350.038,8.623e-05,2]
[396520014,1765031201259,-1000.0,8.623e-05,2]
[396520015,1765031201639,1000.0,8.623e-05,2]
[396520016,1765031204181,1000.0,8.623e-05,2]
[396520017,1765031204900,1000.0,8.623e-05,2]
[396520018,1765031205120,792.25616357,8.623e-05,2]
[396520019,1765031210722,175.024,8.607e-05,2]
[396520020,1765031218590,175.024,8.607e-05,2]
[396520024,1765031233908,175.024,8.607e-05,2]
[396520025,1765031235517,151.88,8.3e-05,2]
[396520026,1765031235910,151.88,8.4e-05,2]
[396520027,1765031236092,151.88,8.6e-05,2]
[396520028,1765031241926,175.024,8.607e-05,2]
[396520029,1765031255101,202.5655413,7.758e-05,2]
[396520030,1765031257850,175.024,8.607e-05,2]
[396520031,1765031260831,150.0,7.286e-05,2]
[396520032,1765031261393,265.9,7.949e-05,2]
[396520033,1765031261825,398.85,8.611e-05,2]
[396520034,1765031265949,175.024,8.607e-05,2]
[396520035,1765031281411,175.024,8.607e-05,2]
[396520036,1765031289781,175.024,8.606e-05,2]
[396520037,1765031294583,151.88,8.3e-05,2]
[396520038,1765031295002,151.88,8.4e-05,2]
[396520039,1765031295418,151.88,8.6e-05,2]
[396520040,1765031305092,175.024,8.606e-05,2]
[396520042,1765031312969,175.024,8.606e-05,2]
[396520043,1765031321332,200.0,8e-05,7]
[396520044,1765031322373,245.06120211,0.00011,3]
[396520045,1765031336173,175.024,8.606e-05,2]
[396520046,1765031341799,150.0,7.284e-05,2]
[396520047,1765031342082,245.16,7.946e-05,2]
[396520048,1765031342531,367.74,8.608e-05,2]
[396520049,1765031343220,250.0,0.00013109,3]
[396520050,1765031343472,250.0,0.00012107,3]
[396520051,1765031344194,250.0,7.999e-05,3]
[396520052,1765031351420,175.024,8.606e-05,2]
[396520053,1765031356362,151.88,8.3e-05,2]
[396520054,1765031356685,151.88,8.4e-05,2]
[396520055,1765031357031,151.88,8.6e-05,2]
[396520056,1765031359641,175.024,8.606e-05,2]
[396520061,1765031414625,151.88,8.3e-05,2]
[396520062,1765031415034,151.88,8.5e-05,2]
[396520063,1765031417326,-182.38191376,8.692e-05,2]
[396520064,1765031424581,150.0,6.905e-05,2]
[396520065,1765031424872,225.74,7.533e-05,2]
[396520066,1765031425311,338.62,8.161e-05,2]
[396520089,1765031432487,-117.61808624,8.692e-05,2]
[396520091,1765031432499,-300.0,8.692e-05,2]
[396520092,1765031432508,-22.7929731,8.692e-05,2]
[396520408,1765031438633,-277.2070269,8.692e-05,2]
[396520409,1765031438643,-222.0,8.692e-05,2]
[396520410,1765031438654,-374.0,8.692e-05,2]
[396520411,1765031438663,-352.30631306,8.693e-05,2]
[396520412,1765031438673,-500.0,8.693e-05,2]
[396520413,1765031438683,-500.0,8.693e-05,2]
[396520414,1765031438692,-500.0,8.693e-05,2]
[396520415,1765031438701,-500.0,8.693e-05,2]
[396520416,1765031438712,-500.0,8.693e-05,2]
[396520417,1765031438721,-500.0,8.693e-05,2]
[396520418,1765031438731,-500.0,8.693e-05,2]
[396520420,1765031438970,-500.0,8.693e-05,2]
[396520422,1765031438980,-500.0,8.693e-05,2]
[396520424,1765031438990,-500.0,8.693e-05,2]
[396520426,1765031438999,-500.0,8.693e-05,2]
[396520428,1765031439009,-500.0,8.693e-05,2]
[396520430,1765031439019,-500.0,8.693e-05,2]
[396520431,1765031439029,-500.0,8.693e-05,2]
[396520432,1765031439039,-500.0,8.693e-05,2]
[396520433,1765031439048,-500.0,8.693e-05,2]
[396520435,1765031439058,-500.0,8.693e-05,2]
[396520436,1765031439067,-500.0,8.693e-05,2]
[396520437,1765031439077,-500.0,8.693e-05,2]
[396520438,1765031439087,-500.0,8.693e-05,2]
[396520439,1765031439096,-500.0,8.693e-05,2]
[396520440,1765031439105,-173.87959366,8.693e-05,2]
[396520441,1765031439114,-500.0,8.693e-05,2]
[396520442,1765031439123,-500.0,8.693e-05,2]
[396520443,1765031439133,-500.0,8.693e-05,2]
[396520444,1765031439142,-500.0,8.693e-05,2]
[396520445,1765031439151,-500.0,8.693e-05,2]
[396520446,1765031439161,-500.0,8.693e-05,2]
[396520447,1765031439170,-500.0,8.693e-05,2]
[396520448,1765031439179,-500.0,8.693e-05,2]
[396520449,1765031439189,-500.0,8.693e-05,2]
[396520450,1765031439198,-500.0,8.693e-05,2]
[396520451,1765031439207,-500.0,8.693e-05,2]
[396520452,1765031439216,-500.0,8.693e-05,2]
[396520453,1765031439225,-372.88988107,8.693e-05,2]
[396520505,1765031441083,-3e-08,8.693e-05,2]
[396520506,1765031441095,-127.1101189,8.693e-05,2]
[396520507,1765031441104,-478.86184689,8.693e-05,2]
[396520508,1765031441122,-21.13815311,8.693e-05,2]
[396520509,1765031441132,-197.28870018,8.693e-05,2]
[396520510,1765031441142,-406.32314671,8.693e-05,2]
[396520511,1765031442422,350.048,8.606e-05,2]
[396520941,1765031449913,-143.44858168,8.693e-05,2]
[396520942,1765031449922,-317.79543769,8.693e-05,2]
[396520943,1765031449932,-500.0,8.693e-05,2]
[396520944,1765031449945,-373.49014876,8.693e-05,2]
[396520945,1765031449955,-500.0,8.693e-05,2]
[396520946,1765031449964,-500.0,8.693e-05,2]
[396520947,1765031449975,-500.0,8.693e-05,2]
[396520948,1765031449984,-451.52205553,8.693e-05,2]
[396520949,1765031449994,-814.55722643,8.693e-05,2]
[396520950,1765031450004,-500.0,8.693e-05,2]
[396520951,1765031450013,-500.0,8.693e-05,2]
[396520952,1765031450026,-500.0,8.693e-05,2]
[396520953,1765031450034,-500.0,8.693e-05,2]
[396520954,1765031450043,-814.55722643,8.693e-05,2]
[396520955,1765031450053,-500.0,8.693e-05,2]
[396520956,1765031450063,-500.0,8.693e-05,2]
[396520957,1765031450072,-500.0,8.693e-05,2]
[396520958,1765031450081,-814.55722643,8.693e-05,2]
[396520959,1765031450091,-500.0,8.693e-05,2]
[396520960,1765031450100,-500.0,8.693e-05,2]
[396520961,1765031450109,-500.0,8.693e-05,2]
[396520962,1765031450118,-500.0,8.693e-05,2]
[396520963,1765031450128,-814.55722643,8.693e-05,2]
[396520964,1765031450137,-500.0,8.693e-05,2]
[396520965,1765031450147,-500.0,8.693e-05,2]
[396520966,1765031450156,-500.0,8.693e-05,2]
[396520967,1765031450165,-500.0,8.693e-05,2]
[396520968,1765031450175,-814.55722643,8.693e-05,2]
[396520969,1765031450184,-500.0,8.693e-05,2]
[396520970,1765031450194,-500.0,8.693e-05,2]
[396520971,1765031450203,-500.0,8.693e-05,2]
[396520972,1765031450212,-814.55722643,8.693e-05,2]
[396520973,1765031450223,-500.0,8.693e-05,2]
[396520974,1765031450232,-814.55722643,8.693e-05,2]
[396520975,1765031450241,-500.0,8.693e-05,2]
[396520976,1765031450251,-500.0,8.693e-05,2]
[396520977,1765031450260,-500.0,8.693e-05,2]
[396520978,1765031450269,-500.0,8.693e-05,2]
[396520979,1765031450278,-814.55722643,8.693e-05,2]
[396520980,1765031450288,-500.0,8.693e-05,2]
[396520981,1765031450297,-500.0,8.693e-05,2]
[396520982,1765031450307,-500.0,8.693e-05,2]
[396520983,1765031450316,-814.55722643,8.693e-05,2]
[396520984,1765031450325,-500.0,8.693e-05,2]
[396520985,1765031450335,-500.0,8.693e-05,2]
[396520986,1765031450344,-500.0,8.693e-05,2]
[396520987,1765031450353,-220.17671153,8.693e-05,2]
[396520988,1765031450364,-500.0,8.693e-05,2]
[396520989,1765031450374,-500.0,8.693e-05,2]
[396520990,1765031450384,-814.55722643,8.693e-05,2]
[396520991,1765031450571,-500.0,8.693e-05,2]
[396520992,1765031450591,-500.0,8.693e-05,2]
[396520993,1765031450603,-814.55722643,8.693e-05,2]
[396520994,1765031450613,-500.0,8.693e-05,2]
[396520995,1765031450623,-500.0,8.693e-05,2]
[396520996,1765031450633,-814.55722643,8.693e-05,2]
[396520997,1765031450642,-500.0,8.693e-05,2]
[396520998,1765031450652,-814.55722643,8.693e-05,2]
[396520999,1765031450661,-500.0,8.693e-05,2]
[396521000,1765031450671,-500.0,8.693e-05,2]
[396521001,1765031450681,-814.55722643,8.693e-05,2]
[396521002,1765031450690,-500.0,8.693e-05,2]
[396521003,1765031450699,-814.55722643,8.693e-05,2]
[396521004,1765031450710,-500.0,8.693e-05,2]
[396521005,1765031450719,-500.0,8.693e-05,2]
[396521006,1765031450729,-814.55722643,8.693e-05,2]
[396521007,1765031450738,-814.55722643,8.693e-05,2]
[396521008,1765031450747,-500.0,8.693e-05,2]
[396521009,1765031450757,-500.0,8.693e-05,2]
[396521010,1765031450766,-814.55722643,8.693e-05,2]
[396521011,1765031450776,-500.0,8.693e-05,2]
[396521012,1765031450786,-362.37787777,8.693e-05,2]
[396521013,1765031450795,-814.55722643,8.693e-05,2]
[396521014,1765031450806,-500.0,8.693e-05,2]
[396521015,1765031450815,-500.0,8.693e-05,2]
[396521016,1765031450825,-814.55722643,8.693e-05,2]
[396521017,1765031450835,-814.55722643,8.693e-05,2]
[396521018,1765031450845,-814.55722643,8.693e-05,2]
[396521019,1765031450854,-814.55722643,8.693e-05,2]
[396521020,1765031450863,-814.55722643,8.693e-05,2]
[396521021,1765031450873,-814.55722643,8.693e-05,2]
[396521022,1765031450883,-814.55722643,8.693e-05,2]
[396521023,1765031450892,-814.55722643,8.693e-05,2]
[396521024,1765031450902,-814.55722643,8.693e-05,2]
[396521025,1765031450912,-814.55722643,8.693e-05,2]
[396521026,1765031450921,-814.55722643,8.693e-05,2]
[396521027,1765031450930,-814.55722643,8.693e-05,2]
[396521028,1765031450945,-814.55722643,8.693e-05,2]
[396521029,1765031450959,-814.55722643,8.693e-05,2]
[396521030,1765031450969,-500.0,8.693e-05,2]
[396521031,1765031450978,-500.0,8.693e-05,2]
[396521032,1765031450992,-500.0,8.693e-05,2]
[396521033,1765031451001,-500.0,8.693e-05,2]
[396521034,1765031451011,-500.0,8.693e-05,2]
[396521035,1765031451020,-500.0,8.693e-05,2]
[396521036,1765031451036,-1200.0,8.693e-05,2]
[396521037,1765031451058,-1016.14670386,8.694e-05,2]
[396521038,1765031451072,-2312.83697232,8.694e-05,2]
[396521039,1765031451081,-500.0,8.694e-05,2]
[396521040,1765031451090,-203.77898361,8.694e-05,2]
[396521041,1765031451100,-500.0,8.697e-05,2]
[396521042,1765031451110,-1145.0,8.697e-05,2]
[396521043,1765031451119,-151.0,8.697e-05,2]
[396521044,1765031451128,-151.0,8.697e-05,2]
[396521045,1765031451137,-151.0,8.697e-05,2]
[396521046,1765031451147,-248.31652511,8.697e-05,2]
[396521047,1765031451156,-500.0,8.697e-05,2]
[396521048,1765031451166,-500.0,8.697e-05,2]
[396521049,1765031451176,-956.0,8.697e-05,2]
[396521050,1765031451185,-500.0,8.697e-05,2]
[396521051,1765031451195,-500.0,8.697e-05,2]
[396521052,1765031451204,-500.0,8.697e-05,2]
[396521053,1765031451213,-988.0,8.697e-05,2]
[396521054,1765031451223,-500.0,8.697e-05,2]
[396521055,1765031451232,-379.56105705,8.698e-05,2]
[396521056,1765031451241,-56536.20465492,8.699e-05,2]
[396521057,1765031451880,175.024,8.606e-05,2]
[396521058,1765031452916,-943.06923046,8.699e-05,2]
[396521059,1765031454962,203.77898361,8.649e-05,2]
[396521060,1765031458868,182.62143698,8.612e-05,2]
[396521062,1765031465989,500.0,8.61e-05,2]
[396521063,1765031473649,151.88,8.3e-05,2]
[396521064,1765031473970,151.88,8.5e-05,2]
[396521065,1765031474518,1802.0,8.61e-05,2]
[396521067,1765031490526,265.69273994,8.605e-05,2]
[396521078,1765031498317,2486.80665428,8.605e-05,2]
[396521079,1765031503464,250.701,8.525e-05,2]
[396521090,1765031507671,150.0,6.951e-05,2]
[396521091,1765031508184,207.56,7.583e-05,2]
[396521092,1765031508564,311.34,8.215e-05,2]
[396521099,1765031514093,4222.14960578,8.605e-05,2]
[396521100,1765031514147,3291.37404566,8.605e-05,2]
[396521104,1765031522418,5516.75348573,8.605e-05,2]
[396521115,1765031531621,151.88,8.3e-05,2]
[396521119,1765031532503,151.88,8.5e-05,2]
[396521123,1765031545352,300.0,8.604e-05,2]
[396521144,1765031569379,3084.33530683,8.604e-05,2]
[396521158,1765031588369,150.0,7.308e-05,2]
[396521159,1765031588814,190.53,7.972e-05,2]
[396521162,1765031589276,285.8,8.636e-05,2]
[396521165,1765031592238,1500.0,8.603e-05,2]
[396521166,1765031599068,151.88,8.3e-05,2]
[396521168,1765031599373,151.88,8.5e-05,2]
[396521177,1765031614878,1500.0,8.603e-05,2]
[396521184,1765031630499,175.024,8.603e-05,2]
[396521189,1765031638525,1500.0,8.603e-05,2]
[396521193,1765031646188,-253.90009219,8.69e-05,2]
[396521195,1765031648255,-514.42410008,8.69e-05,2]
[396521196,1765031649178,-431.67580773,8.69e-05,2]
[396521197,1765031649231,-300.0,8.69e-05,2]
[396521200,1765031651770,151.88,8.3e-05,2]
[396521201,1765031652065,151.88,8.6e-05,2]
[396521205,1765031660993,3183.99888544,8.604e-05,2]
[396521208,1765031666389,150.0,7.312e-05,2]
[396521210,1765031666837,174.59,7.977e-05,2]
[396521211,1765031667243,261.89,8.641e-05,2]
[396521212,1765031667635,9413.53,8.599e-05,2]
[396521213,1765031667690,10000.01,8.599e-05,2]
[396521214,1765031667744,10000.01,8.599e-05,2]
[396521215,1765031667798,10000.01,8.599e-05,2]
[396521216,1765031667850,10000.01,8.599e-05,2]
[396521217,1765031667903,10000.01,8.599e-05,2]
[396521222,1765031677280,265.69273994,8.598e-05,2]
[396521225,1765031678775,395.34220566,8.598e-05,2]
[396521226,1765031678834,500.0,8.598e-05,2]
[396521227,1765031678913,3108.65757295,8.598e-05,2]
[396521228,1765031678970,500.0,8.598e-05,2]
[396521229,1765031679040,3108.65757295,8.598e-05,2]
[396521230,1765031679105,450.1263092,8.598e-05,2]
[396521231,1765031679200,500.0,8.598e-05,2]
[396521232,1765031679263,1171.5335993,8.598e-05,2]
[396521233,1765031679315,1937.12397365,8.598e-05,2]
[396521235,1765031680058,500.0,8.598e-05,2]
[396521236,1765031680172,3108.65757295,8.598e-05,2]
[396521237,1765031680262,500.0,8.598e-05,2]
[396521238,1765031680318,164.53804103,8.598e-05,2]
[396521239,1765031680379,500.0,8.598e-05,2]
[396521240,1765031680451,3108.65757295,8.598e-05,2]
[396521242,1765031680517,181.03283942,8.598e-05,2]
[396521243,1765031680567,318.96716058,8.598e-05,2]
[396521244,1765031680641,3108.65757295,8.598e-05,2]
[396521245,1765031680700,500.0,8.598e-05,2]
[396521246,1765031680765,3108.65757295,8.598e-05,2]
[396521247,1765031680834,500.0,8.598e-05,2]
[396521248,1765031680898,2463.72769352,8.598e-05,2]
[396521249,1765031680946,644.92987943,8.598e-05,2]
[396521250,1765031681017,500.0,8.598e-05,2]
[396521251,1765031681082,3108.65757295,8.598e-05,2]
[396521252,1765031681149,500.0,8.598e-05,2]
[396521253,1765031681211,3108.65757295,8.598e-05,2]
[396521254,1765031681279,500.0,8.598e-05,2]
[396521255,1765031681336,1637.76497467,8.598e-05,2]
[396521256,1765031681383,1470.89259828,8.598e-05,2]
[396521257,1765031681450,500.0,8.598e-05,2]
[396521258,1765031681507,3108.65757295,8.598e-05,2]
[396521259,1765031681585,3108.65757295,8.598e-05,2]
[396521260,1765031681668,1811.80225582,8.598e-05,2]
[396521261,1765031681729,1296.85531713,8.598e-05,2]
[396521262,1765031681780,500.0,8.598e-05,2]
[396521263,1765031681844,3108.65757295,8.598e-05,2]
[396521264,1765031681915,3108.65757295,8.598e-05,2]
[396521265,1765031681982,1985.83953697,8.598e-05,2]
[396521275,1765031706722,-235.60170719,8.427e-05,2]
[396521277,1765031710696,151.1,8.3e-05,2]
[396521290,1765031719986,151.0,8.251e-05,2]
[396521294,1765031724008,-64.39829281,8.427e-05,2]
[396521295,1765031724040,-151.1,8.5e-05,2]
[396521296,1765031724064,-3.5328749,8.511e-05,2]
[396521297,1765031725508,-199.4671251,8.511e-05,2]
[396521298,1765031725534,-10.80146007,8.511e-05,2]
[396521299,1765031727059,-280.67967314,8.511e-05,2]
[396521300,1765031729092,-8.51886679,8.511e-05,2]
[396521301,1765031729121,-300.0,8.511e-05,2]
[396521302,1765031729148,-204.86404478,8.511e-05,2]
[396521314,1765031733341,186.0,0.000203,120]
[396521315,1765031735802,-95.13595522,8.511e-05,2]
[396521316,1765031735828,-134.54267033,8.511e-05,2]
[396521317,1765031741134,-396.94592762,8.511e-05,2]
[396521319,1765031743857,-196.19853118,8.511e-05,2]
[396521320,1765031743929,291.67741277,8.426e-05,2]
[396521322,1765031744513,150.0,6.973e-05,2]
[396521323,1765031744931,227.5,7.606e-05,2]
[396521324,1765031745393,341.26,8.24e-05,2]
[396521326,1765031749943,-340.32470254,8.511e-05,2]
[396521330,1765031754442,-131.98816833,8.511e-05,2]
[396521331,1765031754469,-96.42779071,8.512e-05,2]
[396521333,1765031759244,-170.84051163,8.512e-05,2]
[396521337,1765031765201,-265.05990688,8.511e-05,2]
[396521340,1765031767132,-34.94009312,8.511e-05,2]
[396521341,1765031767159,-217.29391882,8.512e-05,2]
[396521343,1765031768546,-309.55841584,8.512e-05,2]
[396521345,1765031770718,151.31,8.3e-05,2]
[396521346,1765031771053,151.31,8.5e-05,2]
[396521347,1765031773231,-327.89807133,8.512e-05,2]
[396521351,1765031776918,-394.68712608,8.512e-05,2]
[396521356,1765031782288,-257.55539863,8.512e-05,2]
[396521359,1765031784869,-215.10551669,8.512e-05,2]
[396521361,1765031790296,-374.11756834,8.512e-05,2]
[396521363,1765031793639,-288.01848471,8.512e-05,2]
[396521366,1765031798273,-158.67369741,8.512e-05,2]
[396521368,1765031800536,-339.59656162,8.512e-05,2]
[396521370,1765031805226,-429.1171305,8.512e-05,2]
[396521371,1765031806782,-281.52186953,8.512e-05,2]
[396521372,1765031809656,-189.35867447,8.512e-05,2]
[396521373,1765031814910,-152.03,8.511e-05,2]
[396521375,1765031818561,-173.43486946,8.511e-05,2]
[396521376,1765031821727,-168.76996166,8.511e-05,2]
[396521377,1765031822494,153.03072889,8.426e-05,2]
[396521378,1765031823891,-331.23003834,8.511e-05,2]
[396521379,1765031823917,-107.10731502,8.511e-05,2]
[396521380,1765031824106,150.0,6.986e-05,2]
[396521381,1765031824504,224.48,7.621e-05,2]
[396521382,1765031824931,336.72,8.256e-05,2]
[396521383,1765031829927,-192.89268498,8.511e-05,2]